bitfinex-derivatives/quotes_BNBF0:USTF0_20250417
["timestamp","ask_amount","ask_price","bid_price","bid_amount"]
[1744897599979,0.33997416,588.28,587.53,1.396]
[1744897600180,0.30373434,588.27,587.53,1.396]
[1744897600478,0.33998572,588.26,587.53,1.396]
[1744897600879,0.30383791,588.25,587.53,1.396]
[1744897601080,0.33999728,588.24,587.53,1.396]
[1744897601672,0.30380808,588.23,587.53,1.396]
[1744897602181,0.34000884,588.22,587.53,1.396]
[1744897602478,0.30380808,588.21,587.53,1.396]
[1744897602673,0.3400204,588.2,587.53,1.396]
[1744897603580,0.8780204,588.2,587.53,1.396]
[1744897603782,0.30370372,588.19,587.53,1.396]
[1744897603982,0.34003196,588.18,587.53,1.396]
[1744897604182,0.30370372,588.17,587.53,1.396]
[1744897604384,0.34004352,588.16,587.53,1.396]
[1744897606187,0.30365129,588.15,587.53,1.396]
[1744897606485,0.34005508,588.14,587.53,1.396]
[1744897607990,0.30366669,588.13,587.53,1.396]
[1744897608488,0.64372756,588.13,587.53,1.396]
[1744897608688,0.30366669,588.12,587.53,1.396]
[1744897611190,0.64373334,588.12,587.53,1.396]
[1744897611388,0.30366669,588.11,587.53,1.396]
[1744897612990,0.34006665,588.12,587.53,1.396]
[1744897619092,0.63623938,588.12,587.53,1.396]
[1744897620701,0.34006665,588.12,587.53,1.396]
[1744897622003,0.2961929,588.11,587.53,1.396]
[1744897622504,0.64375184,588.1,587.53,1.396]
[1744897622699,0.30367363,588.09,587.53,1.396]
[1744897622904,0.34007821,588.1,587.53,1.396]
[1744897623104,0.34008978,588.08,587.53,1.396]
[1744897623506,0.3037018,588.07,587.53,1.396]
[1744897623805,0.30370756,588.06,587.53,1.396]
[1744897624001,0.30370756,588.07,587.53,1.396]
[1744897624204,0.30370756,588.06,587.53,1.396]
[1744897624500,0.30370756,588.05,587.53,1.396]
[1744897624703,0.30370756,588.07,587.53,1.396]
[1744897624899,0.30370756,588.06,587.53,1.396]
[1744897625206,0.34008978,588.08,587.53,1.396]
[1744897626407,0.30376561,588.07,587.53,1.396]
[1744897626907,0.34008978,588.08,587.53,1.396]
[1744897627109,0.30376906,588.07,587.53,1.396]
[1744897628508,0.34008978,588.08,587.53,1.396]
[1744897628703,0.30375391,588.07,587.53,1.396]
[1744897628907,0.34008978,588.08,587.53,1.396]
[1744897629409,0.30373548,588.07,587.53,1.396]
[1744897630306,0.34008978,588.08,587.53,1.396]
[1744897635313,0.86108978,588.08,587.53,1.396]
[1744897648723,0.30364575,588.07,587.53,1.396]
[1744897648924,0.34010135,588.06,587.53,1.396]
[1744897649125,0.30364575,588.05,587.53,1.396]
[1744897649320,0.34011291,588.04,587.53,1.396]
[1744897649521,0.30364575,588.03,587.53,0.948]
[1744897650927,0.34011291,588.04,587.53,0.948]
[1744897651227,0.30311127,588.03,587.53,0.948]
[1744897651528,0.64322997,588.03,587.53,0.948]
[1744897651727,0.30311127,588.02,587.53,0.948]
[1744897652530,0.3401187,588.03,587.53,0.948]
[1744897652730,0.531,588.01,587.53,0.948]
[1744897652927,0.30311011,588.0,587.53,0.948]
[1744897654127,0.531,588.01,587.53,0.948]
[1744897654325,0.30309388,588.0,587.53,0.948]
[1744897662236,0.531,588.01,587.53,0.948]
[1744897662536,0.30312323,588.0,587.53,0.948]
[1744897663835,0.531,588.01,587.53,0.948]
[1744897664037,0.30312941,588.0,587.53,0.948]
[1744897667037,0.531,588.01,587.53,0.948]
[1744897667337,0.30312862,588.0,587.53,0.948]
[1744897669933,0.30312862,587.99,587.53,0.948]
[1744897670238,0.30312862,587.98,586.91,0.29620172]
[1744897670438,0.30312862,588.02,586.92,0.31285759]
[1744897670640,0.30312862,588.01,586.91,0.29620172]
[1744897670837,0.30312862,588.02,586.91,0.29620172]
[1744897671036,0.30312862,588.01,586.91,0.29620172]
[1744897671339,0.30312862,588.0,586.91,0.29620172]
[1744897671540,0.30312862,588.02,586.91,0.29620172]
[1744897671840,0.30312862,588.02,586.64,0.671]
[1744897672041,0.30312862,588.02,586.91,0.296319]
[1744897672339,0.30312862,588.02,586.65,0.34091877]
[1744897672533,0.30312862,588.02,586.66,0.31285449]
[1744897672734,0.30312862,588.02,586.67,0.34090715]
[1744897672938,0.30312862,588.02,586.68,0.31285449]
[1744897673135,0.30312862,588.02,586.69,0.34089553]
[1744897673342,0.598,588.01,586.7,0.31285449]
[1744897673540,0.30312862,588.0,586.71,0.34088391]
[1744897673840,0.30312862,588.0,586.72,0.31285449]
[1744897674037,0.30312862,588.0,586.73,0.34087229]
[1744897674239,0.30312862,588.0,586.74,0.31285449]
[1744897674440,0.30312862,588.0,586.75,0.34086067]
[1744897674639,0.30312862,588.0,586.76,0.31285449]
[1744897674842,0.30312862,588.0,586.77,0.34084905]
[1744897675142,0.30312862,588.0,586.78,0.31285449]
[1744897675737,0.30312862,588.0,586.79,0.34083743]
[1744897675935,0.30312862,588.0,586.8,0.31285449]
[1744897676241,0.30312862,588.0,586.8,0.65368611]
[1744897676433,0.30312862,588.0,586.81,0.31285449]
[1744897681244,0.598,588.01,586.8,0.34083162]
[1744897681438,0.30312644,588.0,586.81,0.31284943]
[1744897682846,0.598,588.01,586.8,0.34083162]
[1744897683040,0.30312886,588.0,586.81,0.31285318]
[1744897684442,0.598,588.01,586.8,0.34083162]
[1744897684644,0.30312739,588.0,586.81,0.31285382]
[1744897686158,0.30312739,588.0,586.81,0.88585382]
[1744897686344,0.30312739,588.0,586.82,0.31285382]
[1744897687651,0.30312739,587.99,586.82,0.31285382]
[1744897687852,0.3031294,587.98,586.83,0.31285466]
[1744897688052,0.3031294,588.02,586.82,0.31285466]
[1744897688249,0.3031294,588.01,586.83,0.31285466]
[1744897688453,0.3031294,588.02,586.82,0.31285466]
[1744897688654,0.3031294,588.01,586.83,0.31285466]
[1744897688853,0.3031294,588.02,586.82,0.31285466]
[1744897689055,0.3031294,588.01,586.83,0.31285466]
[1744897689255,0.3031294,588.02,586.82,0.31285466]
[1744897689555,0.3031294,588.01,586.83,0.31285466]
[1744897689755,0.3031294,588.02,586.82,0.31285466]
[1744897689951,0.8311294,588.01,586.83,0.31285466]
[1744897690156,0.3031294,588.0,586.82,0.31285466]
[1744897690353,0.3031294,588.0,586.83,0.31285466]
[1744897690654,0.3031294,588.0,586.84,0.31285466]
[1744897690851,0.3031294,588.0,586.85,0.31285466]
[1744897691155,0.643269,587.99,586.86,0.31287047]
[1744897691355,0.30312717,587.98,586.82,0.31287047]
[1744897692151,0.64327479,587.98,586.82,0.31287047]
[1744897692351,0.30312717,587.97,586.82,0.31287047]
[1744897692856,0.30311129,587.96,586.83,0.31287117]
[1744897693052,0.30311129,587.97,586.82,0.31287117]
[1744897697658,0.34014762,587.98,586.81,0.86931648]
[1744897697854,0.30313051,587.97,586.82,0.31286352]
[1744897700862,0.30313051,587.97,586.83,0.675]
[1744897701058,0.3031223,587.96,586.83,0.675]
[1744897701260,0.3031223,587.97,586.84,0.31286776]
[1744897701462,0.3031223,587.96,586.84,0.31286776]
[1744897701658,0.3031223,587.97,586.84,0.31286776]
[1744897701856,0.3031223,587.96,586.84,0.31286776]
[1744897702060,0.3031223,587.97,586.84,0.31286776]
[1744897702260,0.3031223,587.96,586.84,0.31286776]
[1744897702457,0.3031223,587.97,586.84,0.31286776]
[1744897703566,0.34014762,587.98,586.83,0.675]
[1744897703865,0.34014762,587.98,586.84,0.34080839]
[1744897704665,0.34014762,587.98,586.85,0.3127431]
[1744897704866,0.34014762,587.98,586.86,0.34079678]
[1744897705166,0.34014762,587.98,586.87,0.3127431]
[1744897705366,0.34014762,587.98,586.88,0.34078516]
[1744897705564,0.34014762,587.98,586.89,0.3127431]
[1744897705765,0.34014762,587.98,586.9,0.34077355]
[1744897705966,0.34014762,587.98,586.91,0.31272098]
[1744897706365,0.34014762,587.98,586.92,0.34076194]
[1744897706560,0.34014762,587.98,586.93,0.31272098]
[1744897706763,0.34014762,587.98,586.94,0.34075033]
[1744897706964,0.34014762,587.98,586.95,0.31272098]
[1744897707262,0.34014762,587.98,586.96,0.34073872]
[1744897707461,0.34014762,587.98,586.97,0.31272098]
[1744897707761,0.34014762,587.98,586.98,0.34072711]
[1744897707962,0.34014762,587.98,586.99,0.31272098]
[1744897708267,0.34014762,587.98,587.0,0.3407155]
[1744897708465,0.34014762,587.98,587.01,0.31272098]
[1744897708866,0.528,588.01,587.01,0.31272098]
[1744897708867,0.528,588.01,587.02,0.34070389]
[1744897709066,0.528,588.01,587.03,0.31272098]
[1744897709367,0.528,588.01,587.04,0.34069228]
[1744897709561,0.528,588.01,587.05,0.31272098]
[1744897709765,0.528,588.01,587.06,0.34068067]
[1744897718769,0.29604927,588.3,587.06,0.34068067]
[1744897719069,0.30328731,588.29,587.06,0.34068067]
[1744897719369,0.33997416,588.28,587.06,0.34068067]
[1744897719970,0.30327221,588.27,587.06,0.34068067]
[1744897720168,0.33998572,588.26,587.06,0.34068067]
[1744897720370,0.30327221,588.25,587.06,0.34068067]
[1744897720571,0.33999728,588.24,587.06,0.34068067]
[1744897720770,0.30327221,588.23,587.06,0.34068067]
[1744897720969,0.30327221,588.23,587.07,0.31274047]
[1744897721371,0.678,588.22,587.07,0.31274047]
[1744897722672,0.30329442,588.21,587.07,0.31274047]
[1744897722976,0.678,588.22,587.07,0.31274047]
[1744897723774,0.30329915,588.21,587.07,0.31274047]
[1744897725278,0.678,588.22,587.06,0.34068067]
[1744897725474,0.30329697,588.21,587.07,0.31271911]
[1744897725976,0.678,588.22,587.07,0.31271911]
[1744897726173,0.3032835,588.21,587.07,0.31271911]
[1744897729279,0.3032835,588.21,587.08,0.612]
[1744897729581,0.3032835,588.21,587.09,0.31271911]
[1744897731580,0.3032835,588.21,587.1,0.34065746]
[1744897731779,0.678,588.22,587.11,0.31271911]
[1744897731978,0.678,588.22,587.12,0.34064586]
[1744897732176,0.678,588.22,587.13,0.31271911]
[1744897734281,0.678,588.22,587.12,0.34064586]
[1744897735482,0.33999728,588.24,587.12,0.34064586]
[1744897738881,0.33999728,588.24,587.13,0.31269315]
[1744897739082,0.33999728,588.24,587.12,0.34064586]
[1744897739277,0.568,588.23,587.12,0.34064586]
[1744897740584,0.30320926,588.22,587.12,0.34064586]
[1744897740984,0.568,588.23,587.12,0.34064586]
[1744897741284,0.30321712,588.22,587.13,0.31272365]
[1744897744787,0.30321712,588.22,587.12,0.34064586]
[1744897744788,0.568,588.23,587.12,0.34064586]
[1744897750792,0.568,588.23,587.13,0.642]
[1744897754694,0.30324099,588.22,587.14,0.31270037]
[1744897756288,0.30324099,588.22,587.13,0.93815383]
[1744897756289,0.568,588.23,587.13,0.93815383]
[1744897756493,0.30325558,588.22,587.14,0.31270802]
[1744897757094,0.30325558,588.22,587.15,0.545]
[1744897757294,0.30325558,588.22,587.16,0.31270802]
[1744897758494,0.33999728,588.24,587.16,0.31270802]
[1744897758495,0.30325558,588.23,587.16,0.31270802]
[1744897758995,0.33999728,588.24,587.15,0.545]
[1744897759195,0.30322529,588.23,587.16,0.3127134]
[1744897761200,0.30322529,588.23,587.16,0.8887134]
[1744897761398,0.30322529,588.23,587.17,0.3127134]
[1744897762299,0.638,588.22,587.17,0.3127134]
[1744897762599,0.30322529,588.21,587.17,0.3127134]
[1744897763499,0.30322529,588.21,587.16,0.576]
[1744897763895,0.638,588.22,587.16,0.576]
[1744897764094,0.30321521,588.2,587.16,0.576]
[1744897764301,0.30321521,588.19,587.16,0.576]
[1744897764593,0.638,588.22,587.16,0.576]
[1744897770203,0.30330841,588.21,587.17,0.31269135]
[1744897772106,0.638,588.22,587.16,0.576]
[1744897772307,0.30337376,588.21,587.17,0.31267649]
[1744897773005,0.638,588.22,587.16,0.576]
[1744897773208,0.30335015,588.21,587.17,0.31267017]
[1744897774002,0.30335015,588.21,587.17,0.65328702]
[1744897774204,0.30335015,588.21,587.18,0.31267017]
[1744897778505,0.30335015,588.23,587.18,0.31267017]
[1744897778805,0.33999728,588.24,587.18,0.31267017]
[1744897778806,0.30335015,588.22,587.18,0.31267017]
[1744897779009,0.30335015,588.21,587.18,0.31267017]
[1744897779318,0.30335015,588.2,587.18,0.31267017]
[1744897779506,0.30335015,588.23,587.18,0.31267017]
[1744897780208,0.33999728,588.24,587.17,0.34061685]
[1744897780411,0.30335075,588.23,587.18,0.31266771]
[1744897780912,0.475,588.22,587.18,0.98966771]
[1744897781110,0.30335075,588.21,587.19,0.31266771]
[1744897785013,0.475,588.22,587.18,0.677]
[1744897785209,0.30335687,588.2,587.2,0.31266444]
[1744897785414,0.30335687,588.19,587.21,0.31266444]
[1744897785613,0.30335687,588.21,587.19,0.31266444]
[1744897787711,0.475,588.22,587.19,0.31266444]
[1744897787910,0.30335177,588.21,587.19,0.31266444]
[1744897788516,0.475,588.22,587.19,0.31266444]
[1744897789315,0.30335201,588.21,587.19,0.31266444]
[1744897789619,0.475,588.22,587.19,0.31266444]
[1744897789816,0.475,588.22,587.18,0.97313115]
[1744897790121,0.475,588.22,587.19,0.31266552]
[1744897791520,0.475,588.22,587.18,0.97313115]
[1744897791716,0.475,588.22,587.19,0.31266517]
[1744897793420,0.30336009,588.21,587.19,0.31266517]
[1744897793614,0.475,588.22,587.19,0.31266517]
[1744897793914,0.30335887,588.21,587.19,0.31266517]
[1744897794524,0.475,588.22,587.19,0.31266517]
[1744897794718,0.475,588.22,587.18,0.97313115]
[1744897794916,0.475,588.22,587.19,0.31266505]
[1744897796318,0.475,588.22,587.18,0.97313115]
[1744897796623,0.475,588.22,587.19,0.31266539]
[1744897797125,0.30335537,588.21,587.19,0.31266539]
[1744897798123,0.30335537,588.23,587.19,0.31266539]
[1744897798322,0.30335537,588.22,587.19,0.31266539]
[1744897798525,0.30335537,588.21,587.19,0.31266539]
[1744897798726,0.30335537,588.23,587.19,0.31266539]
[1744897799025,0.30335537,588.22,587.19,0.31266539]
[1744897799326,0.30335537,588.23,587.19,0.31266539]
[1744897799518,0.30335537,588.22,587.19,0.31266539]
[1744897799724,0.30335537,588.23,587.19,0.31266539]
[1744897799925,0.30335537,588.22,587.19,0.31266539]
[1744897800229,0.30335537,588.21,587.19,0.65327064]
[1744897800424,0.30335537,588.23,587.2,0.31266539]
[1744897800725,0.30335537,588.23,587.2,0.65326484]
[1744897800926,0.33999728,588.24,587.2,0.34059945]
[1744897801124,0.30335898,588.23,587.21,0.31265448]
[1744897801319,0.95935898,588.23,587.21,0.31265448]
[1744897801523,0.30335898,588.22,587.21,0.31265448]
[1744897802328,0.656,588.23,587.2,0.34059945]
[1744897802527,0.30334356,588.22,587.21,0.3126666]
[1744897804927,0.656,588.23,587.22,0.34058785]
[1744897805130,0.656,588.23,587.23,0.3126666]
[1744897805334,0.656,588.23,587.24,0.34057625]
[1744897805633,0.656,588.23,587.25,0.31261044]
[1744897805831,0.656,588.23,587.26,0.34056465]
[1744897806034,0.656,588.23,587.27,0.31261044]
[1744897806330,0.656,588.23,587.28,0.34055305]
[1744897806531,0.656,588.23,587.29,0.31261044]
[1744897808433,0.656,588.23,587.3,0.34054146]
[1744897809535,0.656,588.23,587.31,0.3125707]
[1744897809834,0.656,588.23,587.32,0.34052986]
[1744897810629,0.656,588.23,587.33,0.902]
[1744897821642,0.656,588.23,587.34,0.31261898]
[1744897822837,0.656,588.23,587.35,0.56]
[1744897823042,0.656,588.23,587.36,0.31261898]
[1744897824245,0.29607572,588.59,587.36,0.31261898]
[1744897824546,0.6433016,588.58,587.36,0.31261898]
[1744897824845,0.30350073,588.57,587.36,0.31261898]
[1744897826149,0.33980087,588.58,587.35,0.56]
[1744897826342,0.30351386,588.57,587.36,0.3125907]
[1744897827451,0.83751386,588.57,587.36,0.3125907]
[1744897827652,0.64332628,588.56,587.36,0.3125907]
[1744897827852,0.30351386,588.55,587.36,0.3125907]
[1744897828152,0.64333205,588.55,587.36,0.3125907]
[1744897828451,0.30351386,588.54,587.36,0.3125907]
[1744897828652,0.33982974,588.53,587.36,0.3125907]
[1744897828849,0.30351386,588.52,587.36,0.3125907]
[1744897829153,0.33984129,588.51,587.36,0.3125907]
[1744897829347,0.30351386,588.5,587.36,0.3125907]
[1744897829553,0.33985284,588.49,587.36,0.3125907]
[1744897829754,0.30351386,588.48,587.36,0.3125907]
[1744897829954,0.33986439,588.47,587.36,0.3125907]
[1744897830255,0.30351386,588.46,587.36,0.3125907]
[1744897830452,0.64338402,588.46,587.36,0.3125907]
[1744897830647,0.30351386,588.45,587.36,0.3125907]
[1744897830852,0.33987016,588.46,587.35,0.90051247]
[1744897831154,0.30354217,588.45,587.36,0.31261916]
[1744897833156,0.33987016,588.46,587.35,0.90051247]
[1744897833349,0.30352721,588.45,587.36,0.31260413]
[1744897837260,0.33987016,588.46,587.35,1.19655797]
[1744897837459,0.33987016,588.46,587.36,0.3125684]
[1744897837955,0.33987016,588.46,587.36,0.65307507]
[1744897838158,0.33987016,588.46,587.37,0.3125684]
[1744897838959,0.33987016,588.46,587.38,0.31255396]
[1744897839159,0.33987016,588.46,587.37,0.31255396]
[1744897840152,0.33987016,588.46,587.37,0.65305483]
[1744897840355,0.33987016,588.46,587.38,0.31255396]
[1744897841861,0.33987016,588.46,587.39,0.634]
[1744897842357,0.33987016,588.46,587.4,0.31255229]
[1744897843565,0.33987016,588.46,587.39,0.634]
[1744897843764,0.33987016,588.46,587.4,0.31254874]
[1744897845063,0.33987016,588.46,587.4,0.65303222]
[1744897845268,0.33987016,588.46,587.41,0.34047769]
[1744897845468,0.33987016,588.46,587.42,0.3125356]
[1744897845671,0.33987016,588.46,587.42,0.65300749]
[1744897846065,0.33987016,588.46,587.43,0.3125356]
[1744897848374,0.33987016,588.46,587.42,0.34047189]
[1744897848672,0.33987016,588.46,587.43,0.31253174]
[1744897849976,0.33987016,588.46,587.42,0.34047189]
[1744897850173,0.33987016,588.46,587.44,0.31253581]
[1744897850368,0.33987016,588.46,587.45,0.31253581]
[1744897850571,0.33987016,588.46,587.46,0.31253581]
[1744897850773,0.33987016,588.46,587.43,0.31253581]
[1744897850975,0.33987016,588.46,587.43,0.34046609]
[1744897851274,0.33987016,588.46,587.44,0.31254081]
[1744897853076,0.459,588.45,587.44,0.31254081]
[1744897853376,0.459,588.45,587.43,0.34046609]
[1744897855077,0.459,588.45,587.44,0.3125461]
[1744897858080,0.459,588.45,587.45,0.31254774]
[1744897858278,0.459,588.45,587.44,0.31254774]
[1744897858476,0.459,588.45,587.46,0.31254774]
[1744897858678,0.459,588.45,587.45,0.31254774]
[1744897858876,0.459,588.45,587.46,0.31254774]
[1744897859077,0.459,588.45,587.44,0.31254774]
[1744897859582,0.459,588.45,587.43,0.63647255]
[1744897859784,0.459,588.45,587.44,0.31251962]
[1744897859986,0.459,588.45,587.44,0.65297992]
[1744897860385,0.459,588.45,587.45,0.31251962]
[1744897860681,0.459,588.45,587.45,0.79851962]
[1744897860879,0.459,588.45,587.46,0.31251962]
[1744897861083,0.459,588.45,587.47,0.31246646]
[1744897861281,0.459,588.45,587.45,0.486]
[1744897861282,0.459,588.45,587.46,0.31246646]
[1744897861478,0.459,588.45,587.47,0.31246646]
[1744897861683,0.459,588.45,587.46,0.31246646]
[1744897861878,0.459,588.45,587.47,0.65290937]
[1744897862082,0.459,588.45,587.48,0.65290358]
[1744897862284,0.459,588.45,587.49,0.65289778]
[1744897862485,0.459,588.45,587.5,0.65289199]
[1744897862783,0.459,588.45,587.51,0.65288619]
[1744897862983,0.459,588.45,587.52,0.31246646]
[1744897863486,0.459,588.45,587.53,0.34040814]
[1744897863783,0.459,588.45,587.54,0.31246646]
[1744897863984,0.459,588.45,587.53,0.34040814]
[1744897863985,0.459,588.45,587.55,0.65285156]
[1744897864186,0.459,588.45,587.56,0.65284576]
[1744897864383,0.459,588.45,587.57,0.34038497]
[1744897865890,0.459,588.45,587.58,0.31244736]
[1744897866084,0.459,588.45,587.59,0.34037338]
[1744897866486,0.459,588.45,587.6,0.31244312]
[1744897866786,0.459,588.45,587.6,0.65281071]
[1744897867186,0.459,588.45,587.61,0.31244312]
[1744897868885,0.459,588.45,587.62,0.31244073]
[1744897869087,0.459,588.45,587.61,0.31244073]
[1744897869289,0.459,588.45,587.62,0.31244073]
[1744897869489,0.459,588.45,587.61,0.31244073]
[1744897869686,0.459,588.45,587.62,0.31244073]
[1744897869890,0.459,588.45,587.61,0.31244073]
[1744897870087,0.459,588.45,587.63,0.465]
[1744897870394,0.459,588.45,587.64,0.31244073]
[1744897871795,0.459,588.45,587.63,0.465]
[1744897872094,0.459,588.45,587.64,0.31243327]
[1744897873190,0.459,588.45,587.65,0.34033863]
[1744897873595,0.459,588.45,587.66,0.31240784]
[1744897873894,0.459,588.45,587.67,0.34032705]
[1744897874192,0.459,588.45,587.68,0.31240784]
[1744897874398,0.459,588.45,587.69,0.34031547]
[1744897874592,0.459,588.45,587.7,0.31240784]
[1744897874797,0.459,588.45,587.7,0.65271752]
[1744897875097,0.459,588.45,587.7,0.34030968]
[1744897875395,0.459,588.45,587.71,0.31241164]
[1744897876697,0.459,588.45,587.7,0.34030968]
[1744897876890,0.459,588.45,587.71,0.31240664]
[1744897878393,0.459,588.45,587.72,0.31241356]
[1744897878596,0.459,588.45,587.73,0.31241356]
[1744897878794,0.459,588.45,587.71,0.31241356]
[1744897878992,0.459,588.45,587.72,0.31241356]
[1744897879196,0.459,588.45,587.71,0.31241356]
[1744897879493,0.459,588.45,587.72,0.31241356]
[1744897879797,0.459,588.45,587.73,0.31241356]
[1744897879998,0.459,588.45,587.71,0.31241356]
[1744897880190,0.459,588.45,587.7,0.34030968]
[1744897880191,0.459,588.45,587.72,0.31241356]
[1744897880396,0.459,588.45,587.73,0.31241356]
[1744897880591,0.459,588.45,587.71,0.31241356]
[1744897880797,0.459,588.45,587.72,0.31241356]
[1744897880998,0.459,588.45,587.71,0.31241356]
[1744897881500,0.459,588.45,587.72,0.559]
[1744897881698,0.459,588.45,587.73,0.31241211]
[1744897886402,0.459,588.45,587.74,0.31241134]
[1744897886597,0.459,588.45,587.73,0.31241134]
[1744897886803,0.459,588.45,587.74,0.31241134]
[1744897886998,0.459,588.45,587.73,0.31241134]
[1744897887203,0.459,588.45,587.74,0.31241134]
[1744897887504,0.459,588.45,587.73,0.31241134]
[1744897887704,0.459,588.45,587.74,0.31241134]
[1744897887906,0.459,588.45,587.75,0.34028073]
[1744897888100,0.459,588.45,587.75,0.6526611]
[1744897888301,0.459,588.45,587.76,0.31238037]
[1744897888499,0.459,588.45,587.77,0.34026915]
[1744897888704,0.459,588.45,587.78,0.31238037]
[1744897888904,0.459,588.45,587.79,0.34025757]
[1744897889105,0.459,588.45,587.8,0.31238037]
[1744897889303,0.459,588.45,587.8,0.65263215]
[1744897889501,0.459,588.45,587.81,0.31238037]
[1744897890103,0.459,588.45,587.81,0.69838037]
[1744897890304,0.459,588.45,587.82,0.31238037]
[1744897890604,0.459,588.45,587.81,0.386]
[1744897913721,0.459,588.45,587.81,0.804]
[1744897928332,0.459,588.45,587.81,1.374]
[1744897928934,0.459,588.45,587.82,0.31239795]
[1744897932137,0.459,588.45,587.81,0.988]
[1744897932336,0.459,588.45,587.82,0.31239778]
[1744897932935,0.459,588.45,587.83,0.505]
[1744897933135,0.459,588.45,587.84,0.31239778]
[1744897933734,0.459,588.45,587.83,0.505]
[1744897946356,0.459,588.45,587.84,0.3123998]
[1744897946553,0.459,588.45,587.83,0.505]
[1744897947455,0.459,588.45,587.84,0.3124031]
[1744897948254,0.459,588.45,587.82,0.29580895]
[1744897948453,0.459,588.45,587.83,0.31240271]
[1744897951450,0.459,588.45,587.84,0.393]
[1744897951854,0.459,588.45,587.85,0.31240234]
[1744897952154,0.459,588.45,587.86,0.6]
[1744897965857,0.459,588.45,587.87,0.375]
[1744897978079,0.459,588.45,587.86,0.6]
[1744897980579,0.459,588.45,587.87,0.456]
[1744897985179,0.459,588.45,587.88,0.548]
[1744898002398,0.459,588.45,587.87,0.456]
[1744898004698,0.459,588.45,587.88,0.521]
[1744898005704,0.459,588.45,587.89,0.539]
[1744898011011,0.459,588.45,587.9,0.31238206]
[1744898011705,0.459,588.45,587.89,0.539]
[1744898012412,0.459,588.45,587.9,0.31237477]
[1744898012713,0.459,588.45,587.89,0.539]
[1744898014917,0.459,588.45,587.9,0.552]
[1744898032338,0.459,588.45,587.9,1.172]
[1744898047654,0.459,588.45,587.91,0.31234893]
[1744898048256,0.459,588.45,587.9,0.29571971]
[1744898048453,0.459,588.45,587.91,0.31234893]
[1744898050464,0.459,588.45,587.91,0.70134893]
[1744898050663,0.459,588.45,587.92,0.31234893]
[1744898051266,0.459,588.45,587.92,0.91834893]
[1744898051465,0.459,588.45,587.93,0.31234893]
[1744898052668,0.459,588.45,587.92,0.606]
[1744898057869,0.459,588.45,587.92,1.176]
[1744898104211,0.459,588.45,587.92,1.813]
[1744898117821,0.459,588.45,587.92,1.207]
[1744898120630,0.459,588.45,587.92,1.791]
[1744898140350,0.30343931,588.44,587.92,1.791]
[1744898140952,0.30343931,589.14,587.92,1.791]
[1744898141151,0.3394894,589.12,587.92,1.791]
[1744898141350,0.29585296,588.72,587.92,1.791]
[1744898141552,0.6431644,588.71,587.92,1.791]
[1744898141846,0.64317017,588.7,587.92,1.791]
[1744898142050,0.64317594,588.69,587.92,1.791]
[1744898142250,0.64318171,588.68,587.92,1.791]
[1744898142451,0.30343856,588.67,587.92,1.791]
[1744898144353,0.33974315,588.68,587.92,1.791]
[1744898144556,0.459,588.66,587.92,1.791]
[1744898144854,0.30343668,588.65,587.92,1.791]
[1744898150862,0.30343697,588.64,587.92,1.791]
[1744898151058,0.30343697,588.65,587.92,1.791]
[1744898158763,0.30343697,588.67,587.92,1.791]
[1744898161463,0.30344232,588.66,587.92,1.791]
[1744898161662,0.30344232,588.67,587.92,1.791]
[1744898161961,0.30344232,588.66,587.92,1.791]
[1744898162162,0.30344232,588.67,587.92,1.791]
[1744898162362,0.579,588.65,587.92,1.791]
[1744898162561,0.30344232,588.64,587.92,1.791]
[1744898164167,0.579,588.65,587.92,1.791]
[1744898174174,0.30345366,588.64,587.92,1.791]
[1744898175874,0.30346075,588.63,587.92,1.791]
[1744898176074,0.30346075,588.64,587.92,1.791]
[1744898176277,0.30346075,588.63,587.92,1.791]
[1744898176474,0.30346075,588.64,587.92,1.791]
[1744898177468,0.30346106,588.63,587.92,1.791]
[1744898177669,0.30346106,588.62,587.92,1.791]
[1744898177977,0.30346106,588.61,587.92,1.791]
[1744898178175,0.30346106,588.64,587.92,1.791]